bitfinex-derivatives/quotes_BTCF0:USTF0_20250711
["timestamp","ask_amount","ask_price","bid_price","bid_amount"]
[1752262620226,0.2994207,117990.0,117980.0,2.26350859]
[1752262620423,0.52822902,118010.0,117980.0,2.27987141]
[1752262620621,0.0607707,118030.0,118020.0,0.01819]
[1752262620825,0.06443,118050.0,118040.0,0.04271]
[1752262621029,0.3003346,118050.0,118040.0,2.00534349]
[1752262621233,0.3003346,118050.0,118040.0,1.60723]
[1752262621626,0.3003346,118050.0,118040.0,1.60019]
[1752262621829,0.69844809,118050.0,118040.0,1.60019]
[1752262622032,0.3003346,118050.0,118040.0,1.66739744]
[1752262622232,0.69844809,118050.0,118040.0,1.66739744]
[1752262622627,1.05924809,118050.0,118040.0,1.28207744]
[1752262622929,0.2983489,118040.0,118030.0,1.2036]
[1752262623131,1.1256922,118040.0,118030.0,1.2036]
[1752262625632,0.2983633,118030.0,118020.0,1.21957152]
[1752262625836,0.7649066,118030.0,118020.0,1.21957152]
[1752262626130,0.2983633,118030.0,118020.0,1.21957152]
[1752262626434,1.1257066,118030.0,118020.0,1.21957152]
[1752262626631,0.2359476,118020.0,118010.0,0.6676768]
[1752262626835,0.7649209,118020.0,118010.0,0.6921968]
[1752262627035,0.7649209,118020.0,118010.0,0.7033468]
[1752262628241,0.7649209,118020.0,118010.0,1.3392921]
[1752262628242,0.2983776,118020.0,118010.0,1.3392921]
[1752262628428,0.2983776,118020.0,118010.0,0.8727488]
[1752262629538,0.2983776,118020.0,118010.0,0.7033468]
[1752262629739,0.7649209,118020.0,118010.0,0.60148]
[1752262630041,0.7649209,118020.0,118010.0,0.806552]
[1752262630340,0.2983776,118020.0,118010.0,0.63715]
[1752262630937,0.2983776,118020.0,118010.0,0.806552]
[1752262631139,0.2983776,118020.0,118010.0,0.63715]
[1752262633348,0.2983776,118020.0,118010.0,0.63815]
[1752262636943,0.2983776,118020.0,118010.0,0.807552]
[1752262637148,0.2985776,118020.0,118010.0,0.807752]
[1752262637946,0.2985776,118020.0,118010.0,0.63835]
[1752262642143,0.7651209,118020.0,118010.0,0.63835]
[1752262642948,0.69676972,118020.0,118010.0,0.63835]
[1752262646447,0.75739609,118020.0,118010.0,0.63835]
[1752262646647,0.35920397,118020.0,118010.0,0.63835]
[1752262646853,0.75739609,118020.0,118010.0,0.63835]
[1752262648154,0.75739609,118020.0,118010.0,0.60268]
[1752262648155,1.11819609,118020.0,118010.0,0.60268]
[1752262649353,1.82784172,118020.0,118010.0,0.0012]
[1752262649548,1.90399566,118020.0,118010.0,0.0012]
[1752262650346,0.2105421,118010.0,118000.0,0.00169484]
[1752262650552,1.13625879,118010.0,118000.0,0.00169484]
[1752262650854,1.53445091,118010.0,118000.0,4e-08]
[1752262651055,0.2983708,117990.0,117980.0,0.64193592]
[1752262651256,0.77549426,117990.0,117980.0,0.65307592]
[1752262652058,0.77549426,117990.0,117980.0,0.7216276]
[1752262654060,0.37730214,117990.0,117980.0,0.7216276]
[1752262654254,0.77549426,117990.0,117980.0,0.7216276]
[1752262654449,0.37730214,117990.0,117980.0,0.7216276]
[1752262654756,0.77549426,117990.0,117980.0,0.7216276]
[1752262655758,0.71461771,117990.0,117980.0,0.7216276]
[1752262658661,0.71461771,117990.0,117980.0,0.1209076]
[1752262659660,0.31642559,117990.0,117980.0,0.1209076]
[1752262659961,0.71461771,117990.0,117980.0,0.1209076]
[1752262661564,1.07541771,117990.0,117980.0,0.0848476]
[1752262661757,1.07541771,117990.0,117980.0,0.06855168]
[1752262661955,0.2983853,117980.0,117970.0,0.99742]
[1752262662157,0.69657742,117980.0,117970.0,0.63662]
[1752262662357,1.05737742,117980.0,117970.0,0.63662]
[1752262662556,1.05737742,117980.0,117970.0,0.03606]
[1752262663163,1.05737742,117980.0,117970.0,0.03706]
[1752262663364,1.05737742,117980.0,117970.0,0.003]
[1752262665563,1.65777742,117980.0,117970.0,0.003]
[1752262665766,1.65777742,117980.0,117970.0,0.02792]
[1752262666462,1.65777742,117980.0,117970.0,0.03906]
[1752262666663,1.65777742,117980.0,117970.0,0.1055526]
[1752262666664,0.2983853,117980.0,117970.0,0.1055526]
[1752262666867,0.2983853,117980.0,117970.0,0.03906]
[1752262667073,0.2985853,117980.0,117970.0,0.03926]
[1752262669277,0.69677742,117980.0,117970.0,0.03926]
[1752262670173,0.69677742,117980.0,117970.0,0.2087197]
[1752262670374,0.2752753,117980.0,117970.0,2.17288182]
[1752262670678,0.2341353,117980.0,117970.0,2.17288182]
[1752262670878,0.2341353,117980.0,117970.0,2.23963517]
[1752262671777,0.2578453,117980.0,117970.0,2.23963517]
[1752262672979,0.2341353,117980.0,117970.0,2.23963517]
[1752262675481,0.2341353,117980.0,117970.0,1.67198335]
[1752262675784,0.69641742,117980.0,117970.0,1.66737335]
[1752262676375,0.69641742,117980.0,117970.0,1.83683295]
[1752262676786,0.2982253,117980.0,117970.0,1.66737335]
[1752262677088,0.69641742,117980.0,117970.0,1.83683295]
[1752262678788,0.69641742,117980.0,117970.0,1.84144295]
[1752262680190,0.69641742,117980.0,117970.0,1.31118335]
[1752262680390,0.75729397,117980.0,117970.0,1.30657335]
[1752262680787,0.69641742,117980.0,117970.0,1.47603295]
[1752262681090,0.75729397,117980.0,117970.0,1.48064295]
[1752262681285,0.35910185,117980.0,117970.0,1.84144295]
[1752262681486,0.69641742,117980.0,117970.0,1.84144295]
[1752262682393,0.2982253,117980.0,117970.0,1.84144295]
[1752262682690,0.35910185,117980.0,117970.0,1.84144295]
[1752262683091,0.2982253,117980.0,117970.0,1.84144295]
[1752262683295,0.2982253,117980.0,117970.0,1.67198335]
[1752262683493,0.69641742,117980.0,117970.0,1.83683295]
[1752262683991,0.69641742,117980.0,117970.0,1.84144295]
[1752262684192,0.69641742,117980.0,117970.0,1.30657335]
[1752262684593,0.69641742,117980.0,117970.0,1.66737335]
[1752262685593,0.75729397,117980.0,117970.0,1.66737335]
[1752262687397,0.75729397,117980.0,117970.0,1.83683295]
[1752262687992,0.35910185,117980.0,117970.0,1.83683295]
[1752262688400,0.35910185,117980.0,117970.0,1.84144295]
[1752262688993,0.75729397,117980.0,117970.0,1.84144295]
[1752262689798,0.35910185,117980.0,117970.0,1.84144295]
[1752262691693,0.75729397,117980.0,117970.0,1.84144295]
[1752262692698,0.75729397,117980.0,117970.0,1.31118335]
[1752262692895,0.75729397,117980.0,117970.0,1.67198335]
[1752262694101,0.75729397,117980.0,117970.0,1.84144295]
[1752262695696,0.2982253,117980.0,117970.0,1.84144295]
[1752262695900,0.69641742,117980.0,117970.0,1.84144295]
[1752262698300,0.2341353,117980.0,117970.0,2.23963507]
[1752262698700,0.29501185,117980.0,117970.0,2.23963507]
[1752262699603,0.33509185,117980.0,117970.0,2.23963507]
[1752262699804,0.35785185,117980.0,117970.0,2.23963507]
[1752262700505,0.75604397,117980.0,117970.0,1.84144295]
[1752262700806,0.35785185,117980.0,117970.0,1.84144295]
[1752262702708,0.35785185,117980.0,117970.0,1.67198335]
[1752262702911,0.35785185,117980.0,117970.0,1.84144295]
[1752262703504,0.75604397,117980.0,117970.0,1.66737335]
[1752262703699,0.75604397,117980.0,117970.0,1.30657335]
[1752262704007,1.05596742,117980.0,117970.0,1.28165335]
[1752262704208,1.05596742,117980.0,117970.0,1.30505335]
[1752262704507,0.75620691,117980.0,117970.0,1.30505335]
[1752262706499,0.35801479,117980.0,117970.0,1.87527517]
[1752262706906,0.35801479,117980.0,117970.0,1.47708305]
[1752262708605,0.12572949,117980.0,117970.0,2.23607517]
[1752262708801,0.06469,117980.0,117970.0,2.23607517]
[1752262709005,0.0002,117980.0,117970.0,2.25911718]
[1752262709205,0.13452394,118000.0,117990.0,0.1988809]
[1752262709512,0.11932839,118000.0,117990.0,2.53257627]
[1752262710110,0.28874499,118000.0,117990.0,2.17177627]
[1752262710305,0.72701711,118000.0,117990.0,1.60415325]
[1752262710511,0.72701711,118000.0,117990.0,1.78423952]
[1752262710512,0.74977711,118000.0,117990.0,1.78423952]
[1752262710907,0.35158499,118000.0,117990.0,1.78423952]
[1752262711106,0.2905866,118000.0,117990.0,1.78523952]
[1752262711409,0.2678266,118000.0,117990.0,1.78723952]
[1752262712913,0.2277466,118000.0,117990.0,1.78723952]
[1752262713207,0.2523037,118010.0,118000.0,0.1694166]
[1752262713414,0.34886449,118010.0,118000.0,0.59705872]
[1752262714311,0.3106261,118010.0,118000.0,0.1988666]
[1752262714812,0.3106261,118010.0,118000.0,0.1998666]
[1752262716208,0.3106261,118010.0,118000.0,0.2008666]
[1752262716705,0.70881822,118010.0,118000.0,0.2008666]
[1752262716908,0.70881822,118010.0,118000.0,0.1984966]
[1752262717714,0.70881822,118010.0,118000.0,0.5592966]
[1752262724723,0.70881822,118010.0,118000.0,0.38988]
[1752262725223,0.12317,118010.0,118000.0,1.62011212]
[1752262725420,0.002,118010.0,118000.0,2.15269942]
[1752262725620,0.1714029,118010.0,118000.0,2.15269942]
[1752262725823,0.1714029,118010.0,118000.0,2.15289942]
[1752262725824,0.0022,118010.0,118000.0,2.15289942]
[1752262726023,0.2299329,118010.0,118000.0,2.15289942]
[1752262726726,0.2941829,118010.0,118000.0,1.7547073]
[1752262726927,0.69237502,118010.0,118000.0,1.7523373]
[1752262727123,0.69237502,118010.0,118000.0,1.58292]
[1752262727823,0.71007368,118010.0,118000.0,1.58292]
[1752262728025,0.71007368,118010.0,118000.0,1.22212]
[1752262728226,0.71007368,118010.0,118000.0,1.19872]
[1752262729821,1.07087368,118010.0,118000.0,1.19872]
[1752262730030,1.07087368,118010.0,118000.0,0.0022]
[1752262730619,0.2716017,117990.0,117980.0,0.0161071]
[1752262730824,0.2957861,117980.0,117970.0,1.21760945]
[1752262731019,0.69397822,117980.0,117970.0,0.45028335]
[1752262731220,1.05477822,117980.0,117970.0,0.06675335]
[1752262731429,0.2958004,117970.0,117960.0,0.96045542]
[1752262731629,0.69399252,117970.0,117960.0,0.96045542]
[1752262733130,0.69399252,117970.0,117960.0,1.02760703]
[1752262733326,0.69399252,117970.0,117960.0,1.02860703]
[1752262733525,0.69399252,117970.0,117960.0,1.05120703]
[1752262733726,0.69399252,117970.0,117960.0,1.05220703]
[1752262737525,1.05479252,117970.0,117960.0,0.69140703]
[1752262737722,1.05479252,117970.0,117960.0,0.60165542]
[1752262738332,1.05479252,117970.0,117960.0,0.62438542]
[1752262740634,1.05479252,117970.0,117960.0,0.02642542]
[1752262741038,1.05479252,117970.0,117960.0,1.55270824]
[1752262741039,0.2958004,117970.0,117960.0,1.55270824]
[1752262741233,0.2327363,117970.0,117960.0,1.55270824]
[1752262741537,0.1417075,117980.0,117970.0,0.1920763]
[1752262741728,0.01744911,117980.0,117970.0,0.95106842]
[1752262742128,0.01744911,117980.0,117970.0,0.96721721]
[1752262742536,0.18691111,117980.0,117970.0,0.96721721]
[1752262743230,0.25017111,117980.0,117970.0,0.96721721]
[1752262744239,0.25017111,117980.0,117970.0,0.56902509]
[1752262744436,0.25017111,117980.0,117970.0,0.96721721]
[1752262744935,0.25117111,117980.0,117970.0,0.96721721]
[1752262747137,0.08170911,117980.0,117970.0,0.96721721]
[1752262747337,0.08190911,117980.0,117970.0,0.96741721]
[1752262755844,0.01864911,117980.0,117970.0,0.96741721]
[1752262757645,0.07764911,117980.0,117970.0,0.96741721]
[1752262761648,0.07764911,117980.0,117970.0,0.56922509]
[1752262761945,0.28569151,117980.0,117970.0,0.56922559]
[1752262762149,0.70833363,117980.0,117970.0,0.63594879]
[1752262762540,0.70833363,117980.0,117970.0,0.01634879]
[1752262762748,1.06913363,117980.0,117970.0,0.61330879]
[1752262762947,1.06913363,117980.0,117970.0,0.59716]
[1752262763744,1.06913363,117980.0,117970.0,0.0002]
[1752262769857,1.66601363,117980.0,117970.0,0.0002]
[1752262771857,1.72701202,117980.0,117970.0,0.0002]
[1752262772358,0.2080564,117970.0,117960.0,0.00169542]
[1752262772554,1.05049852,117970.0,117960.0,0.00169542]
[1752262773763,1.05049852,117970.0,117960.0,0.00269542]
[1752262775258,1.05049852,117970.0,117960.0,0.00369542]
[1752262775856,1.05907448,117970.0,117960.0,0.00369542]
[1752262777169,0.2915064,117970.0,117960.0,0.02721542]
[1752262777367,0.2915064,117970.0,117960.0,0.95569824]
[1752262777368,0.12203,117970.0,117960.0,0.95569824]
[1752262777571,0.059,117970.0,117960.0,1.37021871]
[1752262777765,0.059,117970.0,117960.0,0.57383447]
[1752262778068,0.059,117970.0,117960.0,0.97202659]
[1752262778262,0.2284763,117970.0,117960.0,0.97202659]
[1752262778664,0.2915063,117970.0,117960.0,0.80253589]
[1752262779269,0.2915063,117970.0,117960.0,0.97202659]
[1752262779968,0.2915063,117970.0,117960.0,1.00090377]
[1752262780566,0.68969842,117970.0,117960.0,1.00090377]
[1752262780765,0.68969842,117970.0,117960.0,0.64010377]
[1752262785268,0.2915063,117970.0,117960.0,1.20778659]
[1752262785776,0.35250469,117970.0,117960.0,1.20778659]
[1752262786169,0.2915063,117970.0,117960.0,1.20778659]
[1752262786676,0.2915063,117970.0,117960.0,0.80959447]
[1752262786870,0.2915063,117970.0,117960.0,0.64010377]
[1752262787070,0.2915063,117970.0,117960.0,1.20778659]
[1752262787274,0.35250469,117970.0,117960.0,1.20778659]
[1752262787580,0.2915063,117970.0,117960.0,1.03829589]
[1752262787877,0.2915063,117970.0,117960.0,0.64010377]
[1752262788374,0.68969842,117970.0,117960.0,0.61638377]
[1752262788976,0.68969842,117970.0,117960.0,0.63994377]
[1752262789176,0.75089681,117970.0,117960.0,0.64014377]
[1752262793179,0.35270469,117970.0,117960.0,0.80963447]
[1752262793484,0.35270469,117970.0,117960.0,1.17043447]
[1752262793673,0.35270469,117970.0,117960.0,1.00094377]
[1752262794279,0.75089681,117970.0,117960.0,1.00094377]
[1752262795178,0.68989842,117970.0,117960.0,1.00094377]
[1752262797073,0.68989842,117970.0,117960.0,0.60025542]
[1752262797275,0.68989842,117970.0,117960.0,0.62381542]
[1752262797873,0.68989842,117970.0,117960.0,0.60025542]
[1752262798675,0.68989842,117970.0,117960.0,0.62381542]
[1752262799479,0.68989842,117970.0,117960.0,0.98461542]
[1752262800783,0.68989842,117970.0,117960.0,0.62381542]
[1752262803274,0.68989842,117970.0,117960.0,0.98461542]
[1752262803476,0.68989842,117970.0,117960.0,0.62381542]
[1752262803683,0.0592,117970.0,117960.0,1.55177814]
[1752262803882,0.2286762,117970.0,117960.0,1.55177814]
[1752262804387,0.2671662,117970.0,117960.0,1.55177814]
[1752262804686,0.2902362,117970.0,117960.0,1.55177814]
[1752262805087,0.35123459,117970.0,117960.0,1.15358602]
[1752262805285,0.74942671,117970.0,117960.0,0.98409542]
[1752262805881,0.74942671,117970.0,117960.0,0.98401542]
[1752262806083,0.74942671,117970.0,117960.0,1.15350602]
[1752262806982,0.68842832,117970.0,117960.0,1.15350602]
[1752262807184,0.74942671,117970.0,117960.0,1.15350602]
[1752262807984,0.35123459,117970.0,117960.0,1.15350602]
[1752262809888,0.35123459,117970.0,117960.0,1.55169814]
[1752262810891,0.18175839,117970.0,117960.0,1.55169814]
[1752262811088,0.06099839,117970.0,117960.0,2.22298546]
[1752262811392,0.01793644,117980.0,117970.0,0.1694763]
[1752262811595,0.01793644,117980.0,117970.0,0.94456216]
[1752262811787,0.01793644,117980.0,117970.0,1.26802216]
[1752262813084,0.01793644,117980.0,117970.0,1.26902216]
[1752262813286,0.01793644,117980.0,117970.0,1.76902216]
[1752262813487,0.01793644,117980.0,117970.0,1.77002216]
[1752262816787,0.01793644,117980.0,117970.0,1.79298556]
[1752262819585,0.01793644,117980.0,117970.0,1.37183004]
[1752262819792,0.01793644,117980.0,117970.0,1.77002216]
[1752262827991,0.07409644,117980.0,117970.0,1.77002216]
[1752262828191,0.07429644,117980.0,117970.0,1.77022216]
[1752262830390,0.70452046,117980.0,117970.0,2.39235374]
[1752262830793,1.06532046,117980.0,117970.0,1.4919]
[1752262830995,0.70452046,117980.0,117970.0,1.51461]
[1752262831791,0.30632834,117980.0,117970.0,1.91280212]
[1752262832296,0.30632834,117980.0,117970.0,1.51461]
[1752262832901,0.70452046,117980.0,117970.0,1.21471]
[1752262838498,0.30632834,117980.0,117970.0,1.78237812]
[1752262839503,0.30632834,117980.0,117970.0,1.21471]
[1752262844701,0.70452046,117980.0,117970.0,1.21471]
[1752262844896,0.30632834,117980.0,117970.0,1.21471]
[1752262847398,0.2883919,117980.0,117970.0,1.23111429]
[1752262847600,0.68658402,117980.0,117970.0,1.23111429]
[1752262848300,0.68658402,117980.0,117970.0,1.59191429]
[1752262848502,0.68658402,117980.0,117970.0,1.23111429]
[1752262849403,0.68658402,117980.0,117970.0,1.59191429]
[1752262850102,0.68658402,117980.0,117970.0,1.23111429]
[1752262854306,0.74758241,117980.0,117970.0,1.23111429]
[1752262857213,0.74758241,117980.0,117970.0,0.04131429]
[1752262857400,1.04738402,117980.0,117970.0,0.61272429]
[1752262857802,1.27791041,117980.0,117970.0,0.0022]
[1752262858006,0.2850359,117970.0,117960.0,2e-08]
[1752262858205,0.2057303,117960.0,117950.0,0.06923398]
[1752262858409,0.2850646,117950.0,117940.0,0.61000654]
[1752262858610,1.04405672,117950.0,117940.0,0.61000654]
[1752262859612,0.6458646,117950.0,117940.0,0.80328554]
[1752262859807,0.68325672,117950.0,117940.0,0.03964654]
[1752262860005,0.11556,117950.0,117940.0,2.16465248]
[1752262860313,0.2850646,117950.0,117940.0,1.76646036]
[1752262861102,0.2850646,117950.0,117940.0,1.76846036]
[1752262861302,0.68325672,117950.0,117940.0,1.83528432]
[1752262861502,0.68325672,117950.0,117940.0,1.83728432]
[1752262861911,0.2850646,117950.0,117940.0,1.83728432]
[1752262862115,0.68325672,117950.0,117940.0,1.6594305]
[1752262862518,1.04405672,117950.0,117940.0,1.2986305]
[1752262862711,0.68325672,117950.0,117940.0,1.2986305]
[1752262862911,1.04405672,117950.0,117940.0,1.2986305]
[1752262863519,0.68325672,117950.0,117940.0,1.2986305]
[1752262863710,0.68325672,117950.0,117940.0,1.4681495]
[1752262863909,0.2850646,117950.0,117940.0,1.86634162]
[1752262864109,0.0564,117950.0,117940.0,2.22714162]
[1752262864310,0.33130016,117960.0,117940.0,2.31189792]
[1752262864509,0.38770016,117960.0,117950.0,0.42195212]
[1752262865015,0.38770016,117960.0,117950.0,0.02376]
[1752262865717,0.34532456,117960.0,117950.0,0.95325682]
[1752262866814,0.34532456,117960.0,117950.0,0.95425682]
[1752262867414,0.40632295,117960.0,117950.0,0.95425682]
[1752262867909,0.34532456,117960.0,117950.0,0.95425682]
[1752262868114,0.40632295,117960.0,117950.0,0.95425682]
[1752262868313,0.34532456,117960.0,117950.0,0.95425682]
[1752262872615,0.34532456,117960.0,117950.0,0.38656]
[1752262873122,0.34532456,117960.0,117950.0,0.5560644]
[1752262873507,0.34532456,117960.0,117950.0,0.38656]
[1752262873715,0.74351668,117960.0,117950.0,0.38656]
[1752262873910,1.1417088,117960.0,117950.0,0.95664]
[1752262874111,1.1417088,117960.0,117950.0,0.59584]
[1752262874316,0.74351668,117960.0,117950.0,0.59584]
[1752262874707,0.74351668,117960.0,117950.0,0.6196]
[1752262875019,0.74371668,117960.0,117950.0,0.6198]
[1752262875812,0.80471507,117960.0,117950.0,0.6198]
[1752262876012,0.74371668,117960.0,117950.0,0.6198]
[1752262880224,0.80471507,117960.0,117950.0,0.6198]
[1752262882924,0.19464595,117960.0,117950.0,1.54829642]
[1752262883127,0.30313746,117960.0,117950.0,1.54829642]
[1752262883618,0.30313746,117960.0,117950.0,1.37879212]
[1752262883817,0.70132958,117960.0,117950.0,0.9806]
[1752262885022,0.70132958,117960.0,117950.0,0.61964]
[1752262885225,0.76232797,117960.0,117950.0,0.59588]
[1752262885413,1.33008009,117960.0,117950.0,0.0022]
[1752262885616,0.2596087,117940.0,117930.0,0.95444]
[1752262885814,0.68272082,117940.0,117930.0,0.9793]
[1752262886422,0.68272082,117940.0,117930.0,1.04692072]
[1752262886926,0.68272082,117940.0,117930.0,1.04892072]
[1752262887629,0.68272082,117940.0,117930.0,1.04992072]
[1752262889027,0.68272082,117940.0,117930.0,1.21945372]
[1752262889229,0.2845287,117940.0,117930.0,1.21945372]
[1752262889929,0.68272082,117940.0,117930.0,0.43142072]
[1752262890120,0.68272082,117940.0,117930.0,0.66422072]
[1752262891630,0.68272082,117940.0,117930.0,0.68908072]
[1752262895922,0.2845287,117940.0,117930.0,1.04988072]
[1752262896122,0.68272082,117940.0,117930.0,1.04988072]
[1752262897232,0.2845287,117940.0,117930.0,1.04988072]
[1752262897428,0.2845287,117940.0,117930.0,1.07263632]
[1752262897630,0.2845287,117940.0,117930.0,1.47082844]
[1752262897837,0.2242687,117940.0,117930.0,1.64036144]
[1752262898327,0.2242687,117940.0,117930.0,1.47082844]
[1752262898527,0.2845287,117940.0,117930.0,1.07263632]
[1752262899731,0.68272082,117940.0,117930.0,1.07263632]
[1752262900239,0.68272082,117940.0,117930.0,1.04988072]
[1752262900845,0.68272082,117940.0,117930.0,0.66422072]
[1752262901643,0.68272082,117940.0,117930.0,0.68908072]
[1752262902546,0.2845287,117940.0,117930.0,0.85861372]
[1752262902749,0.2847287,117940.0,117930.0,1.44827284]
[1752262903047,0.2847287,117940.0,117930.0,1.21961372]
[1752262903443,0.2847287,117940.0,117930.0,1.05008072]
[1752262903842,0.2847287,117940.0,117930.0,0.68928072]
[1752262904238,0.68292082,117940.0,117930.0,0.68928072]
[1752262904444,0.2847287,117940.0,117930.0,0.85881372]
[1752262905045,0.2847287,117940.0,117930.0,1.05008072]
[1752262905241,0.2847287,117940.0,117930.0,0.68928072]
[1752262905850,0.2847287,117940.0,117930.0,1.05008072]
[1752262906051,0.2847287,117940.0,117930.0,0.68928072]
[1752262906253,0.34568665,117940.0,117930.0,1.05008072]
[1752262907446,0.2847287,117940.0,117930.0,1.61780574]
[1752262908850,0.2598087,117940.0,117930.0,1.61780574]
[1752262909149,0.0002,117940.0,117930.0,1.61780574]
[1752262910852,0.0002,117940.0,117930.0,2.11780574]
[1752262911546,0.01805864,117950.0,117940.0,0.1929486]
[1752262911751,0.01805864,117950.0,117940.0,0.95194072]
[1752262911951,0.01788756,117960.0,117950.0,0.1929342]
[1752262912149,0.01788756,117960.0,117950.0,2.13828632]
[1752262912549,0.18737746,117960.0,117950.0,1.7400942]
[1752262912850,0.27818746,117960.0,117950.0,1.7400942]
[1752262913050,0.70090958,117960.0,117950.0,1.57059]
[1752262913354,0.30271746,117960.0,117950.0,1.57059]
[1752262913654,0.30271746,117960.0,117950.0,1.7400941]
[1752262915155,0.13322756,117960.0,117950.0,2.13828622]
[1752262915345,0.27818736,117960.0,117950.0,2.13828622]
[1752262916455,0.07267756,117960.0,117950.0,2.13828622]
[1752262916655,0.24216736,117960.0,117950.0,2.13828622]
[1752262916957,0.07267756,117960.0,117950.0,2.13828622]
[1752262917456,0.24216736,117960.0,117950.0,2.13828622]
[1752262917655,0.07267756,117960.0,117950.0,2.13828622]
[1752262918249,0.24216736,117960.0,117950.0,2.13828622]
[1752262918450,0.27818736,117960.0,117950.0,2.13828622]
[1752262918650,0.30271736,117960.0,117950.0,2.13828622]
[1752262920159,0.27818736,117960.0,117950.0,2.13828622]
[1752262920852,0.10869756,117960.0,117950.0,2.13828622]
[1752262922249,0.27818736,117960.0,117950.0,2.13828622]
[1752262923153,0.10869756,117960.0,117950.0,2.13828622]
[1752262923345,0.27818736,117960.0,117950.0,2.13828622]
[1752262923659,0.27818736,117960.0,117950.0,1.7400941]
[1752262923853,0.30271736,117960.0,117950.0,2.13828622]
[1752262926150,0.10869756,117960.0,117950.0,2.13828622]
[1752262926356,0.07267756,117960.0,117950.0,2.13828622]
[1752262927555,0.07267756,117960.0,117950.0,2.13928622]
[1752262928054,0.01788756,117960.0,117950.0,2.13928622]
[1752262928255,0.01808756,117960.0,117950.0,2.13948622]
[1752262928757,0.01808756,117960.0,117950.0,2.14048622]
[1752262928955,0.24236736,117960.0,117950.0,2.14048622]
[1752262929956,0.07287756,117960.0,117950.0,2.14048622]
[1752262930161,0.24236736,117960.0,117950.0,2.14048622]
[1752262930553,0.07287756,117960.0,117950.0,2.14048622]
[1752262930754,0.07287756,117960.0,117950.0,2.13929767]
[1752262931258,0.24236736,117960.0,117950.0,2.13929767]
[1752262931456,0.07287756,117960.0,117950.0,2.13929767]
[1752262932059,0.05499,117960.0,117950.0,2.13929767]
[1752262934259,0.2244798,117960.0,117950.0,2.13929767]
[1752262934451,0.05499,117960.0,117950.0,2.13929767]
[1752262939568,0.05499,117960.0,117950.0,1.74110555]
[1752262939762,0.05499,117960.0,117950.0,2.13929767]
[1752262941156,0.2244797,117960.0,117950.0,2.13929767]
[1752262941357,0.05499,117960.0,117950.0,2.13929767]
[1752262941964,0.2244797,117960.0,117950.0,2.13929767]
[1752262942165,0.05499,117960.0,117950.0,2.13929767]
[1752262942365,0.2244797,117960.0,117950.0,2.13929767]
[1752262942865,0.05499,117960.0,117950.0,2.13929767]
[1752262943065,0.2244797,117960.0,117950.0,2.13929767]
[1752262943864,0.2601697,117960.0,117950.0,2.13929767]
[1752262944169,0.2831197,117960.0,117950.0,2.13929767]
[1752262944870,0.11363,117960.0,117950.0,2.13929767]
[1752262946570,0.05499,117960.0,117950.0,2.13929767]
[1752262947068,0.2244797,117960.0,117950.0,2.13929767]
[1752262947460,0.05499,117960.0,117950.0,2.13929767]
[1752262949267,0.2245758,117970.0,117960.0,0.1694897]
[1752262949468,0.0551,117970.0,117960.0,0.96893147]
[1752262950570,0.68140742,117970.0,117960.0,0.40124965]
[1752262951977,0.2832153,117970.0,117960.0,0.57073935]
[1752262952669,0.34417325,117970.0,117960.0,0.57073935]
[1752262954878,0.34417325,117970.0,117960.0,0.96893147]
[1752262955077,0.17469795,117970.0,117960.0,0.96893147]
[1752262955279,0.34417325,117970.0,117960.0,0.96893147]
[1752262955577,0.2832153,117970.0,117960.0,0.96893147]
[1752262956279,0.0551,117970.0,117960.0,0.96893147]
[1752262956579,0.38147887,117990.0,117980.0,0.169461]
[1752262956782,0.26292153,117990.0,117980.0,2.11229312]
[1752262957273,0.12915353,117990.0,117980.0,2.11229312]
[1752262957481,0.01741353,117990.0,117980.0,2.48165908]
[1752262957680,0.01841353,117990.0,117980.0,2.48165908]
[1752262958272,0.07605,118000.0,117990.0,0.1694466]
[1752262958474,0.07605,118000.0,117990.0,0.92843872]
[1752262959176,0.03769,118010.0,118000.0,0.2466822]
[1752262959371,0.2071079,118010.0,118000.0,2.21234432]
[1752262959781,0.2071079,118010.0,118000.0,2.21134432]
[1752262960476,0.2071079,118010.0,118000.0,1.8131522]
[1752262961180,0.2831579,118010.0,118000.0,1.8131522]
[1752262961381,0.2831579,118010.0,118000.0,1.82905212]
[1752262961877,0.11374,118010.0,118000.0,1.82905212]
[1752262962583,0.002,118010.0,118000.0,2.22724424]
[1752262963085,0.002,118010.0,118000.0,2.29393074]
[1752262964280,0.2811435,118020.0,118010.0,0.2696179]
[1752262964482,0.11174,118020.0,118010.0,1.02861002]
[1752262964985,0.07605,118020.0,118010.0,1.02861002]
[1752262966281,0.2811435,118020.0,118010.0,0.6304179]
[1752262966482,0.67953562,118020.0,118010.0,0.4612]
[1752262966776,0.67953562,118020.0,118010.0,0.6306179]
[1752262967383,0.2813435,118020.0,118010.0,0.6306179]
[1752262969281,0.2813435,118020.0,118010.0,0.4612]
[1752262969482,0.2813435,118020.0,118010.0,0.6306179]
[1752262969678,0.67953562,118020.0,118010.0,0.6306179]
[1752262970883,0.2813435,118020.0,118010.0,0.6306179]
[1752262972788,0.67953562,118020.0,118010.0,0.6306179]
[1752262974285,0.67953562,118020.0,118010.0,0.4612]
[1752262974987,0.67953562,118020.0,118010.0,0.3968]
[1752262976781,0.2813435,118020.0,118010.0,0.41975]
[1752262976980,0.67953562,118020.0,118010.0,0.46339]
[1752262977183,0.67953562,118020.0,118010.0,0.6328079]
[1752262977686,0.67953562,118020.0,118010.0,0.46339]
[1752262978185,0.2813435,118020.0,118010.0,0.46339]
[1752262978385,0.67953562,118020.0,118010.0,0.41975]
[1752262979285,0.67953562,118020.0,118010.0,0.3968]
[1752262979989,0.67953562,118020.0,118010.0,0.46339]
[1752262980483,0.67953562,118020.0,118010.0,0.41975]
[1752262982588,1.43852774,118020.0,118010.0,0.0002]
[1752262982889,0.03484,117990.0,117970.0,0.3608]
[1752262983089,0.68183312,117980.0,117970.0,0.48958651]
[1752262984392,0.68183312,117980.0,117970.0,0.55807651]
[1752262985094,0.68183312,117980.0,117970.0,0.48958651]
[1752262985794,0.68183312,117980.0,117970.0,0.42023763]
[1752262986187,0.68183312,117980.0,117970.0,0.42123763]
[1752262986792,0.68183312,117980.0,117970.0,0.39792]
[1752262987294,0.68183312,117980.0,117970.0,0.46908346]
[1752262997504,0.68183312,117980.0,117970.0,0.53559346]
[1752262999001,0.68183312,117980.0,117970.0,0.49203346]
[1752263002903,0.283641,117980.0,117970.0,0.70506866]
[1752263003103,0.07954,117980.0,117970.0,1.69426078]
[1752263003308,0.0002,117980.0,117970.0,1.69426078]
[1752263003809,0.0002,117980.0,117970.0,2.19426078]
[1752263004200,0.01744756,117990.0,117980.0,0.2061809]
[1752263004406,0.01744756,117990.0,117980.0,1.03148302]
[1752263010116,0.18689406,117990.0,117980.0,1.03148302]
[1752263010410,0.01744756,117990.0,117980.0,1.03148302]
[1752263012310,0.09455756,117990.0,117980.0,1.03148302]
[1752263013116,0.06956756,117990.0,117980.0,1.03148302]
[1752263013320,0.01744756,117990.0,117980.0,1.03148302]